Cogmind - Beta 15 @@@ ROGUE MODE // 2025.09.01 @ 17:46:32 Player: the Result: Destroyed by B-48 Gladiator with Mace Performance ------------- Evolutions (1) 500 Regions Visited (6) 1200 Robots Destroyed (100) 500 Value Destroyed (2113) 2113 Prototype IDs (7) 140 Alien Tech Used (0) 0 Bonus (638) 638 TOTAL SCORE: 5091 Bonus ------- High Alert Combat Kills 44 Follower Combat Kills 228 Met Imprinter 300 Was Imprinted 300 Friendly Fire -234 Cogmind --------- Core Integrity 0/400 Matter 205/300 Energy 100/100 System Corruption 0% Temperature Cool (9) Movement Core (50) Location -6/Proximity Caves Parts ------- > --- POWER (1) -------- (None) > --- PROPULSION (4) --- (None) > --- UTILITY (2) ------ (None) > --- WEAPON (2) ------- (None) > --- INVENTORY (5) ---- Authchip [Power] Peak State ------------ > --- POWER ------------ Improved Deuterium Engine > --- PROPULSION ------- Aluminum Leg VSS Leg VSS Leg Makeshift Leg > --- UTILITY ---------- High-capacity Storage Unit Medium Armor Plating > --- WEAPON ----------- Heavy Particle Cannon Heavy Particle Cannon > --- INVENTORY -------- Cooled Ion Engine Cooled Ion Engine VSS Leg VSS Leg Cooling System Cooling System Transmission Jammer Medium Armor Plating Authchip [Power] Autogun Autogun Autogun Rocket Launcher Rocket Launcher Ripper GAL Module [Rating: 28] Favorites ----------- Power Cooled Ion Engine Engine Cooled Ion Engine Power Core Light Nuclear Core Propulsion Aluminum Leg Leg Aluminum Leg Utility Seismic Detector Device Seismic Detector Storage High-capacity Storage Unit Hackware Hacking Suite Protection Medium Armor Plating Weapon Heavy Particle Cannon Energy Cannon Heavy Particle Cannon Ballistic Gun Autogun Launcher Grenade Launcher Slashing Weapon Ripper Special Melee Weapon Datajack Build | -11 -10 -10 -9 -9 -7 -6 ------- Run | Yrd Mat Min Mat Min Zio Pro Slots Evolved 2 | . . . 2 . . . Power . | . . . . . . . Propulsion 2 | . . . 2 . . . Utility . | . . . . . . . Weapon . | . . . . . . . Parts Attached 53 | 7 9 7 21 . 1 8 Power 11 | 1 3 2 4 . . 1 Engine 8 | 1 2 . 4 . . 1 Core 3 | . 1 2 . . . . Reactor . | . . . . . . . Propulsion 14 | 2 . 2 7 . . 3 Treads . | . . . . . . . Leg 14 | 2 . 2 7 . . 3 Wheel . | . . . . . . . Hover . | . . . . . . . Flight . | . . . . . . . Utility 12 | 2 3 1 4 . . 2 Device 3 | 1 . . 2 . . . Storage 3 | 1 1 . 1 . . . Processor . | . . . . . . . Hackware 1 | . . . 1 . . . Protection 5 | . 2 1 . . . 2 Artifact . | . . . . . . . Weapon 16 | 2 3 2 6 . 1 2 Energy Gun . | . . . . . . . Energy Cannon 5 | . . . 5 . . . Ballistic Gun 6 | 2 2 2 . . . . Ballistic Cannon . | . . . . . . . Launcher 3 | . 1 . 1 . . 1 Special Weapon . | . . . . . . . Impact Weapon . | . . . . . . . Slashing Weapon 1 | . . . . . . 1 Piercing Weapon . | . . . . . . . Special Melee Weapon 1 | . . . . . 1 . Unidentified Prototypes 1 | . . . 1 . . . Parts Lost 14 | . . 3 2 . . 9 Power 1 | . . . . . . 1 Propulsion 6 | . . . 2 . . 4 Utility 4 | . . 1 . . . 3 Weapon 3 | . . 2 . . . 1 Highest Loss Streak 5 | . . 2 2 . . 5 To Critical Strikes . | . . . . . . . Average Backups 15 | 1 9 9 15 20 19 15 Power 1 | . . . 1 2 2 2 Propulsion 2 | . 1 2 1 4 4 2 Utility 6 | . 5 4 7 7 7 5 Weapon 4 | . 2 2 4 5 5 5 Tool/Special . | . . . . . . . Unused Backups 26 | . 6 . 7 1 1 11 Power 2 | . . . . . . 2 Propulsion 4 | . . . 2 . . 2 Utility 13 | . 5 . 2 1 1 4 Weapon 6 | . 1 . 2 . . 3 Tool/Special 1 | . . . 1 . . . Average Slot Usage (%) 99 | . 100 98 99 100 100 98 Engine 8 | . 4 . 10 11 11 11 Core 3 | . 9 14 . . . . Leg 39 | . 28 28 43 44 44 43 Device 8 | . 11 8 7 11 11 . Storage 11 | . 14 14 11 11 11 11 Protection 2 | . 2 4 2 . . 9 Energy Cannon 10 | . . . 7 22 19 19 Ballistic Gun 11 | . 28 19 14 . . . Launcher 1 | . . 8 . . . 1 Peak Build Rating 28 | 7 14 13 24 21 22 28 Average Rating 17 | 6 11 11 19 21 20 26 On Entrance 13 | . 7 12 12 21 21 22 Naked Turns 3 | . . . . . . 3 Heaviest Build 69 | 11 28 28 62 61 61 69 Greatest Support 54 | 20 20 20 49 46 46 54 Greatest Overweight (x) 2 | . 1 1 2 1 1 1 Average Overweight (x) . | . . 1 . 1 1 . Largest Inventory Capacity 20 | 8 10 10 20 20 20 20 Average Capacity 15 | 7 9 10 17 20 20 19 Most Carried 20 | 2 10 10 20 20 20 20 Average Carried 15 | 1 9 9 16 20 19 16 Final Capacity 20 | 8 10 10 20 20 20 5 Final Carried 20 | 2 10 9 20 20 20 1 Class Distribution -------------------- 94% | Mutant 5% | Scavenger-Mutant Dominant Class ---------------- Mutant | -10/Materials Mutant | -10/Mines Mutant | -9/Materials Mutant | -9/Mines Mutant | -7/Zion Mutant | -6/Proximity Caves Resources | -11 -10 -10 -9 -9 -7 -6 ----------- Run | Yrd Mat Min Mat Min Zio Pro Matter Collected 2662 | 350 388 154 1511 65 15 179 Remotely . | . . . . . . . Salvage Created 3272 | 198 582 172 1977 12 . 331 Parts 189 | 12 27 10 117 5 . 18 Haulers Intercepted 8 | . 2 . 6 . . . Recyclers Shooed 2 | . . . 2 . . . Parts Field Recycled . | . . . . . . . Retrieved Matter . | . . . . . . . Parts Self-Destructed 12 | . . . . . . 12 Prevented 3 | . . . . . . 3 Kills | -11 -10 -10 -9 -9 -7 -6 ------- Run | Yrd Mat Min Mat Min Zio Pro Combat Hostiles Destroyed 58 | . 7 6 33 . . 12 Guns 30 | . 7 6 17 . . . Cannons 10 | . . . 8 . . 2 AOE 18 | . . . 8 . . 10 Classes Destroyed 14 | 2 6 1 2 . . 3 Worker 6 | . 1 . 5 . . . Builder 1 | . 1 . . . . . Tunneler 8 | 6 . . 1 1 . . Hauler 8 | . 2 . 6 . . . Recycler 8 | 1 2 . 5 . . . Operator 4 | . . . 4 . . . Drone 2 | . . . . . . 2 Watcher 6 | . 1 . 5 . . . Swarmer 21 | . 3 . 12 . . 6 Grunt 23 | . 4 4 12 . . 3 Brawler 1 | . . . . . . 1 Sentry 9 | . . . 9 . . . Demolisher 2 | . . 2 . . . . Mutant 1 | . . . . . . 1 Best Kill Streak 8 | 3 4 2 5 1 . 8 Combat Bots Only 8 | . 2 2 5 . . 8 Max Kills in Single Turn 4 | 1 2 1 4 1 . 3 Gunslinging 1 | . 1 . . . . . Exploded 3 | . . . 3 . . 3 Melee . | . . . . . . . Uniques/NPCs Destroyed . | . . . . . . . Combat | -11 -10 -10 -9 -9 -7 -6 -------- Run | Yrd Mat Min Mat Min Zio Pro Hostile Shots Fired 224 | . 26 27 113 . . 58 Missed 41 | . 6 3 23 . . 9 Hits 183 | . 20 24 90 . . 49 Melee 6 | . . . . . . 6 Projectile 177 | . 20 24 90 . . 43 AOE 8 | . . 8 . . . . Critical Strikes 5 | . . 2 . . . 3 Damage Taken 3085 | . 219 536 1122 . . 1208 Core 509 | . 41 32 216 . . 220 Absorbed by Shields . | . . . . . . . Regen/Repaired (Parts) 195 | . . . 195 . . . Core Remaining (%) 85 | 100 . 70 . . . . Volleys Fired 278 | 40 36 16 161 2 . 23 Largest 2 | 2 2 2 2 2 . 2 Hottest 150 | 40 46 46 150 150 . 150 Shots Fired 527 | 80 72 32 307 4 . 32 Gun 414 | 80 72 32 230 . . . Cannon 93 | . . . 71 4 . 18 Launcher 20 | . . . 6 . . 14 Special . | . . . . . . . Kinetic 414 | 80 72 32 230 . . . Thermal 93 | . . . 71 4 . 18 Explosive 20 | . . . 6 . . 14 Electromagnetic . | . . . . . . . Robot Hit Streak 20 | 7 9 5 20 1 . 5 Robot Miss Streak 5 | 5 4 2 5 3 . 3 Penetration Max . | . . . . . . . Secondary Targets 8 | . 3 2 3 . . . Max Gunslinging Chain 1 | . 1 1 1 . . . Shots Hit Robots 312 | 45 44 19 182 2 11 9 Core Hits 140 | 15 20 12 68 1 . 24 Critical Kills 3 | . . . 3 . . . Critical Parts Destroyed 2 | . 1 . 1 . . . Critical Strikes 5 | . 1 . 4 . . . Destroy 5 | . 1 . 4 . . . Melee Attacks 14 | . . . . . 11 3 Impact . | . . . . . . . Slashing 3 | . . . . . . 3 Piercing . | . . . . . . . Sneak Attacks 11 | . . . . . 11 . Combat Hostiles . | . . . . . . . Follow-up Attacks . | . . . . . . . Damage Inflicted 6378 | 367 657 314 3657 50 . 1333 Guns 3802 | 367 657 314 2464 . . . Cannons 907 | . . . 632 50 . 225 Explosions 1669 | . . . 561 . . 1108 Melee . | . . . . . . . Ramming . | . . . . . . . Kinetic 3802 | 367 657 314 2464 . . . Thermal 907 | . . . 632 50 . 225 Explosive 1669 | . . . 561 . . 1108 Electromagnetic . | . . . . . . . Impact . | . . . . . . . Slashing . | . . . . . . . Piercing . | . . . . . . . Highest Corruption 1 | . . . 1 1 1 . Average Corruption 1 | . . . 1 1 1 . Corruption Purged . | . . . . . . . Corruption Blocked . | . . . . . . . Effects 5 | . . . 1 4 . . Matter Fused 2 | . . . . 2 . . Heat Flow Errors 1 | . . . 1 . . . Energy Discharges 2 | . . . . 2 . . Overload Shots . | . . . . . . . Overflow Damage 63 | . . . 49 . . 14 Projectiles 20 | . . . 10 . . 10 Explosions 43 | . . . 39 . . 4 Melee . | . . . . . . . Knockbacks . | . . . . . . . Impact . | . . . . . . . Kinetic . | . . . . . . . Secondary . | . . . . . . . Self-Inflicted Damage 233 | . . . 53 . . 180 Shots 9 | . . . 3 . . 6 Rammed . | . . . . . . . Targets Rammed . | . . . . . . . Kicked . | . . . . . . . Crushed . | . . . . . . . Highest Temperature 453 | . 58 105 453 75 . 302 Average Temperature 64 | . 14 51 67 40 . 111 Received Heat Transfer 636 | . 81 159 330 . . 66 Effects 2 | . . . 2 . . . Energy Bleed 1 | . . . 1 . . . Matter Decay 1 | . . . 1 . . . Siege Activations . | . . . . . . . Martial Activations . | . . . . . . . Shielding Activations . | . . . . . . . Robots Disrupted . | . . . . . . . Combat Hostiles . | . . . . . . . Robots Corrupted . | . . . . . . . Combat Hostiles . | . . . . . . . Parts Fried . | . . . . . . . Impact Corruptions . | . . . . . . . Robots Melted . | . . . . . . . Combat Hostiles . | . . . . . . . Parts Melted . | . . . . . . . Heat Transferred 1295 | . . . 888 74 . 333 Parts Sabotaged . | . . . . . . . Parts Stolen . | . . . . . . . Parts Stripped . | . . . . . . . Power Chain Reactions . | . . . . . . . Alert | -11 -10 -10 -9 -9 -7 -6 ------- Run | Yrd Mat Min Mat Min Zio Pro Maximum Alert Level 2 | . . . 2 1 . . Low Security (%) 79 | 100 100 100 61 82 . . Level 1 5 | . . . 7 17 . . Level 2 15 | . . . 30 . . . Level 3 . | . . . . . . . Level 4 . | . . . . . . . Level 5 . | . . . . . . . High Security . | . . . . . . . Max Security . | . . . . . . . Peak Influence 668 | 15 100 75 668 258 . . Initial 258 | . 3 . 26 258 . . Average 142 | 1 22 7 258 103 . . Influence Increases 2136 | 35 297 183 1191 7 . 423 Destroy 0b10 Robot/C 1220 | . 140 120 660 . . 300 Destroy 0b10 Robot/NC 215 | 35 35 . 130 5 . 10 Destroy Leader 318 | . 36 30 212 . . 40 Allied During Kill 43 | . . . . . . 43 Successful Hack 88 | . 40 18 30 . . . Disable Machine 75 | . 15 15 45 . . . Destroy Structure 87 | . 1 . 84 2 . . Lose Combat Pursuer 90 | . 30 . 30 . . 30 Influence Decreases 1995 | 30 301 117 594 671 . 282 Entered New Map 450 | . 2 1 41 406 . . Time Decay 1395 | 30 299 96 523 265 . 182 Lost Part 100 | . . 20 20 . . 60 Lost Ally 50 | . . . 10 . . 40 Squads Dispatched 10 | . . . 9 . . 1 Investigation 4 | . . . 4 . . . Extermination . | . . . . . . . Reinforcement 5 | . . . 5 . . . Assault 1 | . . . . . . 1 Garrison . | . . . . . . . Intercept . | . . . . . . . Searches Triggered . | . . . . . . . Construction Impeded 1 | . . . 1 . . . Haulers Reinforced . | . . . . . . . Active Scanning Responses . | . . . . . . . Cargo Convoy Interrupts . | . . . . . . . Stealth | -11 -10 -10 -9 -9 -7 -6 --------- Run | Yrd Mat Min Mat Min Zio Pro Distress Signals 3 | . 1 . 1 . . 1 Communications Jammed . | . . . . . . . Distress Signals . | . . . . . . . Times Spotted 90 | . 17 6 46 . . 21 Peak Tracking Total 9 | . 4 2 5 . . 9 Tactical Retreats 4 | . 1 . 2 . . 1 Traps | -11 -10 -10 -9 -9 -7 -6 ------- Run | Yrd Mat Min Mat Min Zio Pro Traps Triggered . | . . . . . . . Indirectly . | . . . . . . . Trap Hack Attempts . | . . . . . . . Triggered . | . . . . . . . Disarmed . | . . . . . . . Reprogrammed . | . . . . . . . Reused . | . . . . . . . Traps Extracted . | . . . . . . . Installed . | . . . . . . . Triggered . | . . . . . . . Machines | -11 -10 -10 -9 -9 -7 -6 ---------- Run | Yrd Mat Min Mat Min Zio Pro Machines Disabled 6 | . 1 1 3 . . 1 Max in Single Turn 1 | . 1 1 1 . . 1 Machines Repaired . | . . . . . . . Machines Dismantled . | . . . . . . . Machines Sabotaged . | . . . . . . . Overloaded Fab Kills . | . . . . . . . Hacking | -11 -10 -10 -9 -9 -7 -6 --------- Run | Yrd Mat Min Mat Min Zio Pro Machines Accessed 21 | . 7 1 12 . 1 . Terminals 14 | . 6 1 7 . . . Fabricators . | . . . . . . . Repair Stations 2 | . . . 2 . . . Recycling Units 2 | . 1 . 1 . . . Scanalyzers 2 | . . . 2 . . . Garrison Access . | . . . . . . . Total Hacks 64 | . 20 3 39 . 2 . Successful 39 | . 11 3 23 . 2 . Failed 25 | . 9 . 16 . . . Catastrophic 5 | . 2 . 3 . . . Database Lockouts . | . . . . . . . Manual 34 | . 15 2 17 . . . Terminals 43 | . 18 3 22 . . . Fabricators . | . . . . . . . Repair Stations 7 | . . . 7 . . . Recycling Units 5 | . 2 . 3 . . . Scanalyzers 7 | . . . 7 . . . Garrison Access . | . . . . . . . Terminal Hacks 21 | . 7 3 9 . 2 . Part Schematic 3 | . . 1 . . 2 . Robot Schematic 1 | . 1 . . . . . Robot Analysis 7 | . 3 1 3 . . . Prototype ID Bank 3 | . 1 . 2 . . . Terminal Index 1 | . . . 1 . . . Hauler Manifests 3 | . 1 . 2 . . . Registered Components 1 | . . . 1 . . . Zone Layout 2 | . 1 1 . . . . Fabricator Hacks . | . . . . . . . Repair Station Hacks 4 | . . . 4 . . . Scan Component 2 | . . . 2 . . . Repair 2 | . . . 2 . . . Recycling Unit Hacks 2 | . 1 . 1 . . . Retrieve Components 2 | . 1 . 1 . . . Scanalyzer 5 | . . . 5 . . . Insert Component 3 | . . . 3 . . . Analyze 2 | . . . 2 . . . Garrison Access Hacks . | . . . . . . . Unauthorized Hacks 7 | . 3 . 4 . . . Terminals 7 | . 3 . 4 . . . Assimilate 1 | . . . 1 . . . Botnet 5 | . 3 . 2 . . . Operators 1 | . . . 1 . . . Fabricators . | . . . . . . . Repair Stations . | . . . . . . . Recycling Units . | . . . . . . . Scanalyzers . | . . . . . . . Garrison Access . | . . . . . . . Data Cores Recovered 1 | . . . 1 . . . Used . | . . . . . . . Hacking Detections 20 | . 7 1 12 . . . Full Trace Events 5 | . . . 5 . . . Feedback Events 1 | . . . 1 . . . Corruption 1 | . . . 1 . . . Feedback Blocked . | . . . . . . . Robot Schematics Acquired 1 | . 1 . . . . . Robots Built . | . . . . . . . Authchips . | . . . . . . . Time . | . . . . . . . Total Robot Build Rating . | . . . . . . . Part Schematics Acquired 5 | . . 1 2 . 2 . Parts Built . | . . . . . . . Authchips . | . . . . . . . Time . | . . . . . . . Total Part Build Rating . | . . . . . . . Parts Repaired 2 | . . . 2 . . . Time 64 | . . . 64 . . . Parts Recycled . | . . . . . . . Recycled Matter . | . . . . . . . Retrieved Matter . | . . . . . . . Retrieved Components 19 | . 9 . 10 . . . Parts Scanalyzed 3 | . . . 3 . . . Part Schematics Acquired 2 | . . . 2 . . . Parts Damaged . | . . . . . . . Bothacking | -11 -10 -10 -9 -9 -7 -6 ------------ Run | Yrd Mat Min Mat Min Zio Pro Used RIF Installer . | . . . . . . . Robots Hacked 9 | . . . . . 9 . Non-combat 3 | . . . . . 3 . Combat 6 | . . . . . 6 . Robot Hacks Applied 11 | . . . . . 11 . parse_system 11 | . . . . . 11 . Relay Couplers Released . | . . . . . . . Fabnet Peak Effective % . | . . . . . . . Robots Rewired . | . . . . . . . Allies Hacked . | . . . . . . . Hacks Repelled . | . . . . . . . Allies | -11 -10 -10 -9 -9 -7 -6 -------- Run | Yrd Mat Min Mat Min Zio Pro Total Allies 5 | . . . 1 . 4 . Largest Group 4 | . . . 1 . 4 4 Highest-Rated Group 153 | . . . 10 . 153 153 Highest-Rated Ally 40 | . . . 10 . 40 40 Total Orders . | . . . . . . . Ally Attacks 47 | . . . . . . 47 Total Damage 804 | . . . . . . 804 Kills 5 | . . . . . . 5 Allies Corrupted . | . . . . . . . Allies Melted 1 | . . . . . . 1 Intel | -11 -10 -10 -9 -9 -7 -6 ------- Run | Yrd Mat Min Mat Min Zio Pro Active Infowar (turns) 7199 | 157 969 845 2309 692 2175 52 Seismic 7199 | 157 969 845 2309 692 2175 52 Robot Analysis Total 7 | . 3 1 3 . . . Derelict Logs Recovered 5 | . . 1 . 1 1 2 Drone Launches . | . . . . . . . Drone Recoveries . | . . . . . . . Exploration | -11 -10 -10 -9 -9 -7 -6 ------------- Run | Yrd Mat Min Mat Min Zio Pro Turns Passed 9802 | 253 1202 1403 3410 692 2175 667 Spaces Moved 4590 | 116 624 492 1569 352 1129 308 Core 4 | 3 . . . . . 1 Treads . | . . . . . . . Legs 4586 | 113 624 492 1569 352 1129 307 Wheels . | . . . . . . . Hover . | . . . . . . . Flight . | . . . . . . . Fastest Speed 50 | 50 120 190 120 190 190 50 Average Speed 175 | 118 167 190 162 190 190 188 Slowest Speed 260 | 120 190 190 260 190 190 190 Overloaded Moves . | . . . . . . . Propulsion Burnouts . | . . . . . . . Robots Hopped . | . . . . . . . Potential Cave-ins . | . . . . . . . Cave-ins Triggered . | . . . . . . . Exploration Rate (%) 72 | 5 97 93 95 73 91 52 Regions Visited 6 Branch Regions 4 Pre-discovered Areas 3 | . . 1 . . 1 1 Known Exits Taken . | . . . . . . . Unknown Exits Taken 6 | 1 1 1 1 1 1 . Scrap Searched 7 | . . 1 . 1 3 2 Spaces Dug 81 | . . . 38 . . 43 Terrain Destroyed 172 | . . . 96 2 . 74 Melee 2 | . . . . . . 2 Projectile 45 | . . . 43 2 . . AOE 125 | . . . 53 . . 72 Terrain Rammed . | . . . . . . . Walls Destroyed . | . . . . . . . Machines Disabled . | . . . . . . . Actions | -11 -10 -10 -9 -9 -7 -6 --------- Run | Yrd Mat Min Mat Min Zio Pro Total 5870 | 164 727 933 2160 372 1155 359 Wait 792 | . 25 411 333 17 6 . Move 4584 | 115 623 491 1568 351 1128 308 Hop . | . . . . . . . Pick Up 54 | 2 17 . 29 1 4 1 Fast Attach 13 | 7 . 1 4 . . 1 Attach 12 | . 1 3 3 . 1 4 Detach 1 | . 1 . . . . . Swap 68 | . 11 8 40 . 1 8 Drop 54 | . 13 3 22 1 4 11 Fire 278 | 40 36 16 161 2 . 23 Melee 14 | . . . . . 11 3 Ram . | . . . . . . . Kick . | . . . . . . . Crush . | . . . . . . . Escape Stasis . | . . . . . . . Rewire . | . . . . . . . Trap . | . . . . . . . Miscellaneous . | . . . . . . . Route ------- -11/Scrapyard -10/Materials (discovered 6 exits: *Mat x3 / *Min x2 / [*Sub]) -10/Mines (discovered 2 exits: *Mat x2) -9/Materials (discovered 4 exits: *Mat x3 / [*Min]) -9/Mines -7/Zion (discovered 2 exits: Dee / [*Pro]) -6/Proximity Caves History --------- Turn | Location | Event 4 | -11/Scrapyard | Discovered new exit (range 15) 254 | -11/Scrapyard | Entered Materials 335 | -10/Materials | Build established: Mutant 429 | -10/Materials | Discovered new exit (range 8) 438 | -10/Materials | Discovered new exit (range 15) 726 | -10/Materials | Discovered new exit (range 16) 835 | -10/Materials | Discovered new exit (range 10) 1051 | -10/Materials | Discovered new exit (range 3) 1112 | -10/Materials | Discovered new exit (range 6) 1456 | -10/Materials | Entered Mines 1457 | -10/Mines | Learned location of Storage (-7) 1771 | -10/Mines | Assembled infested the area 1776 | -10/Mines | Assisted by a Guerilla fighting off Assembled 2384 | -10/Mines | Learned location of 1 exit from Materials 2567 | -10/Mines | Discovered new exit (range 13) 2792 | -10/Mines | Discovered new exit (range 10) 2859 | -10/Mines | Entered Materials 2859 | -9/Materials | Evolved 2 slots: Propulsion x2 2860 | -9/Materials | Identified exit to Materials 3315 | -9/Materials | Build established: Scavenger-Mutant 3612 | -9/Materials | Discovered exit to Materials (range 11) 3746 | -9/Materials | Build established: Mutant 3950 | -9/Materials | Discovered new exit (range 14) 5086 | -9/Materials | Repaired Imp. Aluminum Leg 5120 | -9/Materials | Repaired Autogun 5321 | -9/Materials | Discovered exit to Materials (range 8) 5341 | -9/Materials | Core integrity fell below 50% 6269 | -9/Materials | Entered Mines 6270 | -9/Mines | A Derelict revealed a hidden shortcut to a safe place 6477 | -9/Mines | Found a hidden stash of uninstalled traps 6573 | -9/Mines | Learned Materials stockpile data 6776 | -9/Mines | Received a Rocket Launcher from a helpful Derelict 6961 | -9/Mines | Entered Zion 6992 | -7/Zion | Given A8's code to call for help 7087 | -7/Zion | System corruption cleaned by Quarantine Array 7142 | -7/Zion | Discovered new exit (range 14) 7299 | -7/Zion | Loaded intel: 6 derelict terminal locations 7561 | -7/Zion | Learned location of Warlord (-5) 7943 | -7/Zion | Identified exit to Deep Caves 8332 | -7/Zion | Received a visual enhancement algorithm 8499 | -7/Zion | Met Imprinter 8569 | -7/Zion | Imprinted 8571 | -7/Zion | Declared Zion's savior 9090 | -7/Zion | Found GAL Module 9136 | -7/Zion | Entered Proximity Caves 9136 | -6/Proximity Caves | Accompanied by 4 allies 9188 | -6/Proximity Caves | Spotted B-75 Beast 9215 | -6/Proximity Caves | Allies destroyed B-75 Beast 9248 | -6/Proximity Caves | Spotter reported a threat 9323 | -6/Proximity Caves | Lost 3 parts (2n1u) 9372 | -6/Proximity Caves | Spotter reported a threat 9397 | -6/Proximity Caves | Learned Factory terminal intel 9650 | -6/Proximity Caves | Spotter reported a threat 9711 | -6/Proximity Caves | Spotter reported a threat 9782 | -6/Proximity Caves | Attracted the attention of an 0b10 outpost 9800 | -6/Proximity Caves | Released all parts (3) 9803 | -6/Proximity Caves | Core integrity fell below 20% 9803 | -6/Proximity Caves | Destroyed by B-48 Gladiator with Mace Last Messages --------------- 09798_ Lgt. Nuclear Core fries itself beyond repair. 09798_ Hvy. Particle Cannon severed. 09798_ Dropped GAL Module. 09799_ Dropped Authchip [Power]. 09799_ Dropped VSS Leg. 09800_ The unstable cave ceiling collapses. 09800_ Dropped VSS Leg. 09800_ Imp. Deuterium Engine destroyed. 09800_ VSS Leg destroyed. 09800_ Released VSS Leg. 09800_ Released Hcp. Storage Unit. 09800_ Released Mak. Leg. 09801_ Dropped Rocket Launcher. 09801_ Dropped Hvy. Particle Cannon. 09802_ Autogun fries itself beyond repair. 09802_ Dropped Autogun. 09802_ Dropped Transmission Jammer. 09803_ Dropped Cld. Ion Engine. 09803_ Acquired Authchip [Power]. Map ----- +----------------------------------------------------+ | # ##??## ##?????????????????????????????????? | | ## ####?????##??????????????????????????????????? | | ?####????????????????????????????????????????????? | | ?????????????????????????????????????????????????? | | ??????????????###????????????????????????????????? | | ?????????????? ##???????????????????????????????? | | ????????????? #???????????????????????????????? | | ????????##### #???????????????????????????????? | | ????????# ?????????????????????????????????? | | ####????# ???????? ???????????????????????? | | # ##??## #??????? ? ???????????????????? | | ##?# #?????? ???????????????????? | | ### #####??? ???????????????????? | | ## #???? ???????????????????? | | ## #???? ???????????????????? | | ### ##??## % # ###?????????????????? | | #?## #### #bl""""?????#???????????? | | ???## % ## ?#?? ##??????????? | | ????## # % ? ?? #??????????? | | #????# ## # ## ! ??????????? | | ??## # ## # *%= ?????????? | | ### ## ### "" % ?????????? | | = #?# ????????? | | | ! #?# [/] Y% ????????? | | [ #?# ## =bl![ ????????? | | #?### !&]@[] ????????? | | "" " "## ##???## =#=!!* # ????????? | | " """ "## #?????##?###! # #??? ## ?????????? | | #"""""""""# =#???????????###?#??????????????????? | | ?##"""""""""!%#??????????????????????????????????? | | ???? """"" !#??????????????????????????????????? | | ???? #??????????????????????????????????? | | ?? #??????????????????????????????????? | | ? #??????????????????????????????????? | | ?##############??????????????????????????????????? | | ?????????????????????????????????????????????????? | | ?????????????????????????????????????????????????? | | ?????????????????????????????????????????????????? | | ?????????????????????????????????????????????????? | | ?????????????????????????????????????????????????? | | ?????????????????????????????????????????????????? | | ?????????????????????????????????????????????????? | | ?????????????????????????????????????????????????? | | ?????????????????????????????????????????????????? | | | | | | | | | | | | | +----------------------------------------------------+ Best States ------------- Heat Dissipation 50 Energy Generation 16 Energy Capacity 290 Matter Stores 300 Matter Capacity 300 Sight Range 16 Terrain Scan Density 10 Armor Coverage 225 Evasion (%) 55 Offensive Hacking 10 Authchip Count 1 Item Schematics ----------------- Hcp. Storage Unit | -10/Mines | Hacked Med. Armor Plating | -9/Materials | Scanalyzed Cooling System | -9/Materials | Scanalyzed Flamer | -7/Zion | Free Hvy. Riot Gun | -7/Zion | Free Robot Schematics ------------------ M-13 Machinist | -10/Materials | Hacked Fabricated ------------ Nothing Repaired ---------- Imp. Aluminum Leg | 1% | -9/Materials Autogun | 16% | -9/Materials Alien Tech Used ----------------- None Achievements -------------- None Challenges ------------ None Game ------ Seed DrainedBlanketStrikerail Manual? 0 Play Time 01:23:37 Cumulative 291.1 hours Start 2025.09.01 @ 16:05:06 End 2025.09.01 @ 17:46:32 Sessions 3 Manual Loads 0 Difficulty Rogue Special Mode None Game No. 201 Rogue 201 Adventurer 0 Explorer 0 Win Type - Total 3 Types 3/0/0/0/0/0/0/0/0/0 Lore% 73 Gallery% 74 Achievement% 60 Wizard Run 0 Options --------- Layout 1 ASCII 0 Keyboard 0 Movement Numpad Keybinds 0 Fullscreen 1 Font 24/Smallcaps Map View 50x40 Zoom Use 5% Tactical HUD 1 Map Filters NONE Filters NONE Steam 1 RUN: 292dd592-e684-494c-960e-bb0ff55be6f2